bitfinex/quotes_BTCUSD_20260104
["timestamp","ask_amount","ask_price","bid_price","bid_amount"]
[1767570917351,0.03286678,91351.0,91344.0,0.01094762]
[1767570917726,0.0109469,91350.0,91343.0,0.01094774]
[1767570917919,0.0109469,91350.0,91342.0,0.01094786]
[1767570918102,0.0109469,91350.0,91343.0,0.01094774]
[1767570920320,0.03286678,91351.0,91344.0,0.01094762]
[1767570920509,0.0109469,91350.0,91343.0,0.01094774]
[1767570922690,0.02192,91351.0,91344.0,0.01094762]
[1767570923082,0.0109469,91350.0,91343.0,0.01094774]
[1767570923731,0.04909898,91343.0,91338.0,0.02192]
[1767570923849,0.000999,91343.0,91338.0,0.02192]
[1767570924090,0.01094774,91343.0,91338.0,0.02187605]
[1767570925608,0.01094762,91344.0,91337.0,0.01094846]
[1767570925783,0.01094774,91343.0,91339.0,0.02192]
[1767570926506,0.06568653,91343.0,91335.0,0.01135851]
[1767570926704,0.01094786,91342.0,91339.0,0.02192]
[1767570928591,0.01094774,91343.0,91339.0,0.02192]
[1767570928776,0.01094786,91342.0,91339.0,0.02192]
[1767570931002,0.06568773,91342.0,91339.0,0.02192]
[1767570931767,0.06568688,91343.0,91339.0,0.02192]
[1767570932106,0.06568776,91342.0,91339.0,0.02192]
[1767570932307,0.10005164,91336.0,91335.0,1e-08]
[1767570932556,0.0085334,91339.0,91336.0,0.000999]
[1767570932557,0.06568944,91339.0,91336.0,0.000999]
[1767570932755,0.01094834,91338.0,91335.0,1e-08]
[1767570933373,0.05474232,91337.0,91335.0,1e-08]
[1767570933553,0.0109481,91340.0,91337.0,0.000999]
[1767570933751,0.0109475,91345.0,91337.0,0.000999]
[1767570934105,0.01094786,91342.0,91335.0,1e-08]
[1767570935073,0.01094798,91341.0,91335.0,1e-08]
[1767570935851,0.0109481,91340.0,91335.0,1e-08]
[1767570936575,0.01094798,91341.0,91335.0,1e-08]
[1767570937720,0.0109481,91340.0,91335.0,1e-08]
[1767570937979,0.01094834,91338.0,91335.0,1e-08]
[1767570939472,0.00694798,91341.0,91338.0,0.000999]
[1767570940055,0.00694798,91341.0,91335.0,1e-08]
[1767570940056,0.0109481,91340.0,91335.0,1e-08]
[1767570940663,0.00694798,91341.0,91335.0,1e-08]
[1767570940865,0.01094786,91342.0,91335.0,0.01094871]
[1767570941828,0.01094774,91343.0,91335.0,0.01094871]
[1767570942034,0.01094762,91344.0,91343.0,0.000999]
[1767570942176,0.01094774,91343.0,91336.0,0.01094858]
[1767570942386,0.01094786,91342.0,91336.0,0.01094858]
[1767570942584,0.01094786,91342.0,91335.0,0.01094871]
[1767570943372,0.01094774,91343.0,91336.0,0.01094858]
[1767570944204,0.01094774,91343.0,91335.0,0.01094871]
[1767570944605,0.01094774,91343.0,91336.0,0.01094858]
[1767570945960,0.01094774,91343.0,91337.0,0.01094846]
[1767570946370,0.01094774,91343.0,91336.0,0.01094858]
[1767570946771,0.0109475,91345.0,91338.0,0.01094834]
[1767570947180,0.05473813,91344.0,91335.0,0.01094871]
[1767570947427,0.01094774,91343.0,91336.0,0.01094858]
[1767570947797,0.0109475,91345.0,91337.0,0.01094846]
[1767570948021,0.01094762,91344.0,91337.0,0.01094846]
[1767570948929,0.0109475,91345.0,91338.0,0.01094834]
[1767570950375,0.01094762,91344.0,91336.0,0.01094858]
[1767570950597,0.01094774,91343.0,91335.0,0.01094871]
[1767570950796,0.01094822,91339.0,91335.0,1e-08]
[1767570951309,0.01094834,91338.0,91335.0,1e-08]
[1767570951907,0.01094906,91332.0,91322.0,0.01095026]
[1767570952109,0.01094906,91332.0,91323.0,0.02192]
[1767570952324,0.05474656,91330.0,91324.0,0.02192]
[1767570952525,0.01094954,91328.0,91324.0,0.02192]
[1767570952870,0.04657325,91333.0,91328.0,0.000999]
[1767570953167,0.10132396,91323.0,91322.0,6.701e-05]
[1767570953344,0.04657325,91315.0,91308.0,0.03287194]
[1767570953544,0.01095098,91316.0,91311.0,0.00020636]
[1767570954181,0.01095086,91317.0,91311.0,0.00020636]
[1767570954935,0.01095122,91314.0,91311.0,0.00020636]
[1767570955136,0.06570501,91318.0,91311.0,3.6e-07]
[1767570955339,0.01095086,91317.0,91311.0,3.6e-07]
[1767570955793,0.0109511,91315.0,91311.0,3.6e-07]
[1767570955978,0.01095122,91314.0,91311.0,3.6e-07]
[1767570956176,0.0109511,91315.0,91311.0,3.6e-07]
[1767570956381,0.01095098,91316.0,91311.0,3.6e-07]
[1767570956583,0.0109511,91315.0,91311.0,3.6e-07]
[1767570957508,0.01095122,91314.0,91311.0,3.6e-07]
[1767570958491,0.0109511,91315.0,91311.0,3.6e-07]
[1767570958637,0.01095086,91317.0,91311.0,3.6e-07]
[1767570958815,0.0109511,91315.0,91311.0,3.6e-07]
[1767570959229,0.01095122,91314.0,91311.0,3.6e-07]
[1767570959446,0.0109511,91315.0,91311.0,3.6e-07]
[1767570961339,0.01095122,91314.0,91311.0,3.6e-07]
[1767570961592,0.05475671,91313.0,91311.0,3.6e-07]
[1767570961749,0.01095122,91314.0,91311.0,3.6e-07]
[1767570961964,0.06570745,91314.0,91311.0,3.6e-07]
[1767570962608,0.05475623,91314.0,91311.0,3.6e-07]
[1767570962808,0.01095122,91314.0,91311.0,3.6e-07]
[1767570963368,0.0109511,91315.0,91311.0,3.6e-07]
[1767570965216,0.0547534,91319.0,91311.0,3.6e-07]
[1767570965409,0.01095086,91317.0,91311.0,3.6e-07]
[1767570965865,0.0547534,91319.0,91311.0,3.6e-07]
[1767570966065,0.01095074,91318.0,91311.0,0.01095194]
[1767570966308,0.01095086,91317.0,91311.0,3.6e-07]
[1767570967414,0.01095074,91318.0,91311.0,0.01095194]
[1767570969042,0.01095098,91316.0,91311.0,3.6e-07]
[1767570970292,0.01095074,91318.0,91311.0,3.6e-07]
[1767570970499,0.01095098,91316.0,91311.0,3.6e-07]
[1767570973594,0.0109511,91315.0,91311.0,3.6e-07]
[1767570973758,0.01095086,91317.0,91311.0,3.6e-07]
[1767570973959,0.01095098,91316.0,91309.0,0.01095182]
[1767570974358,0.01095086,91317.0,91309.0,0.01095182]
[1767570975844,0.01095062,91319.0,91310.0,0.0109517]
[1767570976059,0.04779648,91321.0,91310.0,0.0109517]
[1767570976216,0.0109505,91320.0,91310.0,0.0109517]
[1767570976423,0.01095074,91318.0,91311.0,0.01095158]
[1767570977924,0.00890112,91320.0,91311.0,0.01095158]
[1767570978299,0.00890112,91320.0,91312.0,0.01095146]
[1767570978300,0.01095062,91319.0,91312.0,0.01095146]
[1767570978490,0.01095074,91318.0,91311.0,0.01095158]
[1767570979476,0.01095086,91317.0,91310.0,0.0109517]
[1767570979688,0.01095074,91318.0,91311.0,0.01095158]
[1767570980057,0.01095062,91319.0,91312.0,0.01095146]
[1767570980267,0.000999,91312.0,91308.0,0.06571157]
[1767570980466,0.00890112,91320.0,91308.0,0.06571157]
[1767570980467,0.32540601,91320.0,91313.0,0.01095134]
[1767570980681,0.01095062,91319.0,91312.0,0.01095146]
[1767570982028,0.01095062,91319.0,91311.0,0.01095158]
[1767570982250,0.04779648,91323.0,91319.0,4.5e-05]
[1767570982426,0.05874674,91322.0,91319.0,4.5e-05]
[1767570982577,0.0109505,91320.0,91313.0,0.01095134]
[1767570982969,0.0109505,91320.0,91299.0,0.21905952]
[1767570982970,0.0109505,91320.0,91304.0,0.23417209]
[1767570983176,0.04779648,91322.0,91314.0,0.01095122]
[1767570983386,0.09491735,91351.0,91314.0,0.01095122]
[1767570983387,0.02192,91325.0,91316.0,0.01095098]
[1767570983591,0.022028,91325.0,91316.0,0.01095098]
[1767570983909,0.01095002,91324.0,91315.0,0.0109511]
[1767570984140,0.01095026,91322.0,91315.0,0.0109511]
[1767570984334,0.01095014,91323.0,91315.0,0.0109511]
[1767570984875,0.01095002,91324.0,91316.0,0.01095098]
[1767570985085,0.01095002,91324.0,91315.0,0.0109511]
[1767570985286,0.000954,91316.0,91315.0,0.0109511]
[1767570985665,0.00790028,91324.0,91315.0,0.0109511]
[1767570986255,0.01095014,91323.0,91315.0,0.0109511]
[1767570986652,0.05475131,91322.0,91313.0,0.01095134]
[1767570986857,0.06570157,91322.0,91313.0,0.01095134]
[1767570987272,0.06570157,91322.0,91314.0,0.01095122]
[1767570987688,0.01095026,91322.0,91315.0,0.0109511]
[1767570988036,0.00790028,91324.0,91316.0,0.01095098]
[1767570988252,0.0110579,91325.0,91317.0,0.01095086]
[1767570988395,0.01095002,91324.0,91316.0,0.01095098]
[1767570988597,0.01095026,91322.0,91315.0,0.0109511]
[1767570988782,0.01095002,91324.0,91316.0,0.01095098]
[1767570988977,0.01095002,91324.0,91315.0,0.0109511]
[1767570989199,0.01095038,91321.0,91313.0,0.01095134]
[1767570989407,0.06570064,91324.0,91314.0,0.01095122]
[1767570989408,0.01095026,91322.0,91314.0,0.01095122]
[1767570989726,0.01095014,91323.0,91315.0,0.0109511]
[1767570990702,0.01095038,91321.0,91314.0,0.01095122]
[1767570992399,0.01095026,91322.0,91314.0,0.01095122]
[1767570992628,0.01095038,91321.0,91314.0,0.01095122]
[1767570993489,0.00790064,91322.0,91314.0,0.01095122]
[1767570994017,0.00790064,91322.0,91315.0,0.0109511]
[1767570994162,0.01095038,91321.0,91314.0,0.01095122]
[1767570995615,0.00790064,91322.0,91314.0,0.01095122]
[1767570995769,0.0109505,91320.0,91313.0,0.01095134]
[1767570995972,0.01095038,91321.0,91314.0,0.01095122]
[1767570996560,0.00790064,91322.0,91315.0,0.0109511]
[1767570997384,0.01095014,91323.0,91315.0,0.0109511]
[1767570997802,0.01095038,91321.0,91314.0,0.03287122]
[1767570998004,0.01095026,91322.0,91315.0,0.0109511]
[1767570998272,0.01095038,91321.0,91314.0,0.03287122]
[1767570998877,0.01095026,91322.0,91315.0,0.0109511]
[1767570999088,0.01095014,91323.0,91315.0,0.0109511]
[1767570999922,0.01095026,91322.0,91315.0,0.0109511]
[1767571000127,0.01095026,91322.0,91314.0,0.03287122]
[1767571000128,0.01095038,91321.0,91314.0,0.03287122]
[1767571000707,0.05612556,91322.0,91315.0,0.0109511]
[1767571000916,0.01095038,91321.0,91314.0,0.03287122]
[1767571001122,0.00695038,91321.0,91314.0,0.02192]
[1767571001326,0.0109505,91320.0,91314.0,0.020966]
[1767571001648,0.05612592,91319.0,91314.0,0.020966]
[1767571002669,0.01095062,91319.0,91314.0,0.020966]
[1767571003626,0.05612592,91319.0,91314.0,0.020966]
[1767571003833,0.01095074,91318.0,91314.0,0.020966]
[1767571004034,0.05612604,91318.0,91314.0,0.020966]
[1767571004500,0.0451753,91318.0,91314.0,0.020966]
[1767571004689,0.01095062,91319.0,91314.0,0.020966]
[1767571004899,0.0109505,91320.0,91319.0,0.000999]
[1767571005298,0.0109505,91320.0,91314.0,0.020966]
[1767571005531,0.0451753,91323.0,91314.0,0.0757217]
[1767571005702,0.05612556,91322.0,91315.0,0.0109511]
[1767571006342,0.0451753,91322.0,91315.0,0.0109511]
[1767571006633,0.05512656,91322.0,91314.0,0.03191722]
[1767571006878,0.000108,91325.0,91320.0,0.04504162]
[1767571007092,0.01094858,91336.0,91329.0,0.01094942]
[1767571007258,0.0451753,91334.0,91327.0,0.01094966]
[1767571007623,0.05612412,91334.0,91327.0,0.01094966]
[1767571007816,0.05612412,91334.0,91326.0,0.08761818]
[1767571008021,0.04507529,91332.0,91326.0,0.03286978]
[1767571008374,0.04507529,91332.0,91327.0,0.01094966]
[1767571008897,0.04507529,91332.0,91328.0,0.01094954]
[1767571008898,0.03307529,91332.0,91328.0,0.01094954]
[1767571009311,0.03307529,91332.0,91329.0,0.01094942]
[1767571010422,0.03307529,91332.0,91328.0,0.01094954]
[1767571010776,0.03307529,91332.0,91329.0,0.01094942]
[1767571012474,0.01099196,91336.0,91329.0,0.01094942]
[1767571012661,0.01090407,91336.0,91329.0,0.01094942]
[1767571014174,0.000999,91329.0,91326.0,0.03286978]
[1767571014353,0.01094882,91334.0,91327.0,0.01094966]
[1767571014555,0.01094918,91331.0,91326.0,0.02192]
[1767571014787,0.0109493,91330.0,91326.0,0.02192]
[1767571015699,0.01094942,91329.0,91326.0,0.02192]
[1767571015901,0.05461969,91326.0,91324.0,0.02192]
[1767571016135,0.05370869,91326.0,91324.0,0.02192]
[1767571016431,0.01094954,91328.0,91324.0,0.02192]
[1767571016587,0.01094942,91329.0,91324.0,0.02192]
[1767571016792,0.01094954,91328.0,91324.0,0.02192]
[1767571016990,0.01094942,91329.0,91324.0,0.02192]
[1767571017599,0.01094966,91327.0,91324.0,0.02192]
[1767571017808,0.01094966,91327.0,91324.0,0.021009]
[1767571019828,0.01094942,91329.0,91324.0,0.021009]
[1767571021414,0.01094966,91327.0,91324.0,0.021009]
[1767571022650,0.01094966,91327.0,91321.0,0.02192]
[1767571022849,0.01094978,91326.0,91321.0,0.02192]
[1767571023283,0.01094966,91327.0,91321.0,0.02192]
[1767571023487,0.01094942,91329.0,91327.0,0.000999]
[1767571023824,0.01094954,91328.0,91321.0,0.03287038]
[1767571024231,0.01094942,91329.0,91321.0,0.03287038]
[1767571025475,0.01094954,91328.0,91321.0,0.03287038]
[1767571028789,0.01094966,91327.0,91321.0,0.02192]
[1767571029658,0.01094942,91329.0,91321.0,0.03287038]
[1767571029871,0.01094942,91329.0,91322.0,0.01095026]
[1767571031319,0.01094954,91328.0,91321.0,0.02192]
[1767571031942,0.01094966,91327.0,91321.0,0.02192]
[1767571033099,0.01094942,91329.0,91321.0,0.03287038]
[1767571033326,0.01094954,91328.0,91321.0,0.03287038]
[1767571034931,0.0109493,91330.0,91322.0,0.01095026]
[1767571035344,0.01094918,91331.0,91323.0,0.01095014]
[1767571035696,0.01094894,91333.0,91324.0,0.01095002]
[1767571036619,0.01094882,91334.0,91327.0,0.01094966]
[1767571036823,4.338e-05,91336.0,91330.0,0.0109493]
[1767571037061,4.338e-05,91336.0,91332.0,0.01094906]
[1767571037451,4.338e-05,91336.0,91330.0,0.0109493]
[1767571038035,4.338e-05,91336.0,91331.0,0.01094918]
[1767571039737,0.01094822,91339.0,91331.0,0.01094918]
[1767571040413,0.01094834,91338.0,91331.0,0.01094918]
[1767571040960,0.0109481,91340.0,91332.0,0.01094906]
[1767571042338,0.01094834,91338.0,91331.0,0.01094918]
[1767571042922,0.01094846,91337.0,91330.0,0.0109493]
[1767571043272,0.01094834,91338.0,91331.0,0.01094918]
[1767571044067,0.01094822,91339.0,91331.0,0.01094918]
[1767571044633,0.01094846,91337.0,91331.0,0.01094918]
[1767571044790,0.01086057,91337.0,91331.0,0.01094918]
[1767571044990,0.01094834,91338.0,91331.0,0.01094918]
[1767571045944,0.01094846,91337.0,91330.0,0.0109493]
[1767571046720,0.06568915,91340.0,91331.0,0.01094918]
[1767571046849,0.01094822,91339.0,91337.0,0.000999]
[1767571047048,0.01094846,91337.0,91330.0,0.0109493]
[1767571047250,0.01094834,91338.0,91330.0,0.0109493]
[1767571047456,0.00594834,91338.0,91331.0,0.01094918]
[1767571048079,0.00594834,91338.0,91330.0,0.0109493]
[1767571048718,0.01094846,91337.0,91331.0,0.01094918]
[1767571049295,0.00594834,91338.0,91331.0,0.01094918]
[1767571049681,0.01094834,91338.0,91331.0,0.01094918]
[1767571049885,0.01094834,91338.0,91330.0,0.0109493]
[1767571050103,0.01094834,91338.0,91331.0,0.01094918]
[1767571050317,0.0109481,91340.0,91338.0,0.000999]
[1767571050531,0.0109481,91340.0,91332.0,0.01094906]
[1767571050869,0.01094798,91341.0,91333.0,0.01094894]
[1767571051084,0.0109481,91340.0,91329.0,0.01094942]
[1767571051304,0.01094954,91328.0,91318.0,0.04744923]
[1767571051513,0.01095014,91323.0,91319.0,0.02192]
[1767571051726,0.05475251,91320.0,91319.0,0.02192]
[1767571051927,0.01095062,91319.0,91309.0,0.05475911]
[1767571052098,0.01095074,91318.0,91314.0,0.02192]
[1767571052548,0.01095062,91319.0,91314.0,0.02192]
[1767571052759,0.0109505,91320.0,91314.0,0.02192]
[1767571052961,0.01095038,91321.0,91314.0,0.03287122]
[1767571053089,0.01095014,91323.0,91315.0,0.0109511]
[1767571053295,0.01095026,91322.0,91315.0,0.0109511]
[1767571053502,0.01095014,91323.0,91316.0,0.01095098]
[1767571053902,0.0109499,91325.0,91317.0,0.01095086]
[1767571054116,0.0109499,91325.0,91318.0,0.01095074]
[1767571054315,0.01094978,91326.0,91319.0,0.01095062]
[1767571054522,0.06569704,91329.0,91320.0,0.0109505]
[1767571054694,0.01094966,91327.0,91320.0,0.0109505]
[1767571054911,0.01094966,91327.0,91319.0,0.01095062]
[1767571055211,0.0547425,91337.0,91327.0,0.000909]
[1767571055411,0.0109487,91335.0,91328.0,0.01094954]
[1767571055606,0.0109487,91335.0,91328.0,0.01085954]
[1767571056029,0.01094858,91336.0,91329.0,0.01094942]
[1767571056227,0.0109487,91335.0,91321.0,0.03600391]
[1767571056650,0.0109487,91335.0,91327.0,0.01094966]
[1767571056853,0.0109487,91335.0,91328.0,0.01094954]
[1767571057250,0.01094858,91336.0,91328.0,0.01094954]
[1767571057858,0.0109487,91335.0,91328.0,0.01094954]
[1767571058060,0.01094858,91336.0,91329.0,0.01094942]
[1767571058283,0.01094858,91336.0,91328.0,0.01094954]
[1767571058829,0.01094858,91336.0,91329.0,0.01094942]
[1767571059772,0.01094834,91338.0,91330.0,0.0109493]
[1767571060391,0.01094846,91337.0,91329.0,0.01094942]
[1767571061223,0.01094846,91337.0,91330.0,0.0109493]
[1767571062233,0.01094834,91338.0,91330.0,0.0109493]
[1767571062496,0.01094834,91338.0,91331.0,0.01094918]
[1767571062678,0.01094834,91338.0,91330.0,0.0109493]
[1767571062902,0.1149359,91339.0,91330.0,0.0109493]
[1767571063277,0.01094834,91338.0,91330.0,0.0109493]
[1767571063479,0.06569055,91338.0,91328.0,0.01094954]
[1767571063676,0.06569055,91338.0,91329.0,0.01094942]
[1767571063876,0.01094846,91337.0,91329.0,0.01094942]
[1767571064459,0.01094846,91337.0,91329.0,0.01085956]
[1767571065161,0.01094858,91336.0,91329.0,0.01085956]
[1767571065358,0.01094834,91338.0,91330.0,0.0109493]
[1767571065604,0.01094834,91338.0,91329.0,0.01085956]
[1767571065605,0.01094846,91337.0,91329.0,0.01085956]
[1767571066001,0.01094846,91337.0,91330.0,0.0109493]
[1767571066765,0.06024625,91339.0,91331.0,0.01094918]
[1767571066969,0.04929803,91339.0,91332.0,0.0108592]
[1767571067265,0.01094846,91337.0,91330.0,0.0109493]
[1767571067722,0.10403919,91339.0,91330.0,0.0109493]
[1767571067723,0.06024625,91339.0,91330.0,0.0109493]
[1767571068584,0.01094846,91337.0,91330.0,0.0109493]
[1767571068865,0.01094834,91338.0,91331.0,0.01094918]
[1767571070340,0.01094834,91338.0,91330.0,0.0109493]
[1767571070574,0.11498748,91339.0,91330.0,0.0109493]
[1767571071177,0.06569119,91337.0,91326.0,0.05474852]
[1767571071392,0.06569119,91337.0,91327.0,0.06569758]
[1767571071393,0.01094858,91336.0,91327.0,0.06569758]
[1767571071546,0.01094834,91338.0,91330.0,0.0109493]
[1767571071753,0.01094846,91337.0,91330.0,0.0109493]
[1767571072289,0.01094834,91338.0,91330.0,0.0109493]
[1767571072674,0.01094834,91338.0,91331.0,0.01094918]
[1767571072876,0.01094834,91338.0,91331.0,0.01085931]
[1767571073073,0.01094858,91336.0,91329.0,0.01094942]
[1767571073258,0.01094846,91337.0,91330.0,0.0109493]
[1767571074889,0.04929803,91339.0,91332.0,0.01094906]
[1767571075113,0.08231709,91342.0,91337.0,0.000999]
[1767571075324,0.01109906,91342.0,91337.0,0.000999]
[1767571075529,0.01094822,91339.0,91329.0,0.01094942]
[1767571075727,0.00099899,91337.0,91331.0,0.01094918]
[1767571076091,0.01094822,91339.0,91332.0,0.01094906]
[1767571076345,0.04929803,91340.0,91339.0,0.000999]
[1767571076545,0.0001512,91342.0,91339.0,0.000999]
[1767571076737,0.0001512,91342.0,91336.0,0.06569124]
[1767571076738,0.0001512,91342.0,91338.0,0.01094834]
[1767571077398,0.0109463,91355.0,91345.0,0.0109475]
[1767571077607,0.0001512,91361.0,91358.0,0.01094594]
[1767571077751,0.0001512,91361.0,91358.0,0.06567518]
[1767571077951,0.0001512,91361.0,91360.0,0.05472854]
[1767571078164,0.01094439,91371.0,91364.0,0.01094523]
[1767571078511,0.01094463,91369.0,91361.0,0.01094558]
[1767571078720,0.01094463,91369.0,91362.0,0.01094546]
[1767571078929,0.01094511,91365.0,91358.0,0.01094594]
[1767571079135,0.06361391,91368.0,91358.0,0.01094594]
[1767571079339,0.01094499,91366.0,91358.0,0.01094594]
[1767571079790,0.01094499,91366.0,91359.0,0.01094582]
[1767571079998,0.01094511,91365.0,91358.0,0.01094594]
[1767571080345,0.01094499,91366.0,91359.0,0.01094582]
[1767571080721,0.01094558,91361.0,91355.0,0.02192]
[1767571080923,0.05973829,91363.0,91356.0,0.01094618]
[1767571081084,0.01094546,91362.0,91355.0,0.0328663]
[1767571081488,0.04879295,91359.0,91355.0,0.02192]
[1767571081944,0.04879295,91359.0,91355.0,0.0328663]
[1767571082149,0.04879295,91364.0,91356.0,0.01094618]
[1767571082348,9.863e-05,91369.0,91356.0,0.01094618]
[1767571082349,0.01104326,91369.0,91359.0,0.000999]
[1767571082550,0.06566856,91368.0,91358.0,0.01094594]
[1767571082759,0.01094534,91363.0,91356.0,0.01094618]
[1767571082964,0.05973818,91364.0,91357.0,0.01094606]
[1767571083119,0.04879295,91364.0,91358.0,0.01094594]
[1767571083308,0.01094487,91367.0,91359.0,0.01094582]
[1767571083506,0.01094499,91366.0,91358.0,0.01094594]
[1767571083711,0.01094511,91365.0,91358.0,0.01085607]
[1767571084345,0.01094523,91364.0,91357.0,0.01094606]
[1767571084549,0.05973818,91364.0,91357.0,0.01094606]
[1767571084944,0.01094534,91363.0,91356.0,0.01094618]
[1767571085376,0.05973818,91364.0,91357.0,0.01094606]
[1767571085773,0.11455941,91369.0,91360.0,0.0109457]
[1767571085972,0.01094487,91367.0,91359.0,0.01094582]
[1767571086662,0.04879295,91368.0,91359.0,0.01094582]
[1767571086863,0.04879295,91368.0,91360.0,0.0109457]
[1767571087288,0.01094487,91367.0,91359.0,0.01104445]
[1767571087606,0.01094511,91365.0,91359.0,9.863e-05]
[1767571087752,0.01094499,91366.0,91359.0,0.01104445]
[1767571089604,0.01094523,91364.0,91359.0,9.863e-05]
[1767571089782,0.00090037,91359.0,91355.0,0.02192]
[1767571089979,0.00090037,91359.0,91356.0,0.06567666]
[1767571090336,0.01094523,91364.0,91356.0,0.01094618]
[1767571090470,0.01094523,91364.0,91357.0,0.01094606]
[1767571090471,0.01105322,91364.0,91357.0,0.01094606]
[1767571090869,0.00010799,91364.0,91358.0,0.01094594]
[1767571091071,0.06566979,91367.0,91366.0,0.00606911]
[1767571091340,0.01094511,91365.0,91358.0,0.01094594]
[1767571092104,0.01094523,91364.0,91357.0,0.01094606]
[1767571092525,0.01094523,91364.0,91356.0,0.01094618]
[1767571093788,0.01094534,91363.0,91356.0,0.01094618]
[1767571094412,0.01094523,91364.0,91356.0,0.01094618]
[1767571094413,0.05472589,91365.0,91356.0,0.01094618]
[1767571094708,0.01094523,91364.0,91357.0,0.01094606]
[1767571094910,0.01094523,91364.0,91356.0,0.01094618]
[1767571096153,0.01094534,91363.0,91357.0,0.01094606]
[1767571096336,0.00744534,91363.0,91356.0,0.01094618]
[1767571096765,0.01094523,91364.0,91356.0,0.01094618]
[1767571096936,0.01094546,91362.0,91355.0,0.0328663]
[1767571097135,0.01094534,91363.0,91356.0,0.01094618]
[1767571097935,0.01094511,91365.0,91357.0,0.01094606]
[1767571098130,0.01094534,91363.0,91355.0,0.02192]
[1767571098377,0.01094546,91362.0,91356.0,0.02192]
[1767571098588,0.05973829,91363.0,91356.0,0.03297417]
[1767571099010,0.10352329,91357.0,91356.0,0.00010799]
[1767571099247,0.0074264,91356.0,91353.0,0.01094654]
[1767571099529,0.01094499,91366.0,91358.0,0.04907387]
[1767571099685,0.00010801,91366.0,91359.0,0.01094582]
[1767571100283,0.00010801,91366.0,91362.0,0.01094546]
[1767571100684,0.01094463,91369.0,91362.0,0.01094546]
[1767571100685,0.01088707,91369.0,91362.0,0.01094546]
[1767571100885,0.01094475,91368.0,91361.0,0.01094558]
[1767571101389,0.01088707,91369.0,91362.0,0.01094546]
[1767571101512,0.01094451,91370.0,91362.0,0.01094546]
[1767571101714,0.06566619,91372.0,91362.0,0.01094546]
[1767571101715,0.01094439,91371.0,91362.0,0.01094546]
[1767571101923,0.01094427,91372.0,91365.0,0.01094511]
[1767571102122,0.01094427,91372.0,91364.0,0.01094523]
[1767571102395,0.01094451,91370.0,91363.0,0.01094534]
[1767571102903,0.01094439,91371.0,91363.0,0.01094534]
[1767571104679,0.01094439,91371.0,91364.0,0.01094523]
[1767571105145,0.01094427,91372.0,91365.0,0.01094511]
[1767571105356,0.01094427,91372.0,91364.0,0.01094523]
[1767571105563,0.01094427,91372.0,91365.0,0.01094511]
[1767571105758,0.01094439,91371.0,91364.0,0.01094523]
[1767571107366,0.01094427,91372.0,91365.0,0.01094511]
[1767571107573,0.01094403,91374.0,91366.0,0.01094499]
[1767571107800,0.01094403,91374.0,91367.0,0.01094487]
[1767571108409,0.01094415,91373.0,91366.0,0.01094499]
[1767571108797,0.01094403,91374.0,91367.0,0.01094487]
[1767571109001,0.000999,91367.0,91363.0,0.01094534]
[1767571109306,0.000999,91367.0,91364.0,0.01094523]
[1767571109497,0.01094451,91370.0,91363.0,0.01094534]
[1767571109809,0.01094439,91371.0,91364.0,0.01094523]
[1767571110009,0.01094427,91372.0,91364.0,0.01094523]
[1767571110207,0.01094451,91370.0,91363.0,0.01094534]
[1767571110427,0.01094439,91371.0,91364.0,0.01094523]
[1767571110986,0.01094427,91372.0,91365.0,0.01094511]
[1767571111759,0.01094379,91376.0,91369.0,0.01094463]
[1767571111908,0.01094391,91375.0,91367.0,0.01094487]
[1767571112289,0.01094355,91378.0,91368.0,0.01094475]
[1767571112861,0.01094367,91377.0,91369.0,0.01094463]
[1767571114021,0.01094355,91378.0,91371.0,0.01094439]
[1767571114237,0.01109463,91379.0,91372.0,0.01094427]
[1767571114604,0.01094355,91378.0,91371.0,0.01094439]
[1767571115743,0.01094355,91378.0,91370.0,0.01094451]
[1767571115744,0.01094367,91377.0,91370.0,0.01094451]
[1767571116352,0.01094367,91377.0,91369.0,0.01094463]
[1767571116686,0.01094367,91377.0,91370.0,0.01094451]
[1767571117036,0.01094355,91378.0,91370.0,0.01094451]
[1767571117661,0.04635269,91379.0,91370.0,0.01094451]
[1767571118238,0.04635269,91379.0,91368.0,0.06566801]
[1767571118239,0.01094379,91376.0,91368.0,0.01094475]
[1767571118443,0.07663629,91381.0,91370.0,0.01094451]
[1767571118643,0.01094271,91385.0,91376.0,0.06566247]
[1767571118843,0.01094271,91385.0,91376.0,0.01094379]
[1767571119045,0.01098367,91384.0,91377.0,0.01094367]
[1767571119294,4.084e-05,91384.0,91377.0,0.01094367]
[1767571119465,0.01098367,91384.0,91376.0,0.03286379]
[1767571119999,0.01094307,91382.0,91376.0,0.02192]
[1767571120418,0.01094307,91382.0,91376.0,0.020921]
[1767571120419,0.01094331,91380.0,91376.0,0.020921]
[1767571121016,0.01094319,91381.0,91376.0,0.020921]
[1767571121415,0.01094295,91383.0,91376.0,0.020921]
[1767571121640,4.084e-05,91384.0,91377.0,0.01094367]
[1767571122084,0.05475514,91384.0,91376.0,0.020921]
[1767571122257,0.01094295,91383.0,91376.0,0.020921]
[1767571122666,4.084e-05,91384.0,91383.0,0.000999]
[1767571122861,4.084e-05,91384.0,91383.0,0.00090914]
[1767571123085,4.084e-05,91384.0,91380.0,0.01094331]
[1767571123213,4.084e-05,91384.0,91378.0,0.01094355]
[1767571123411,4.084e-05,91384.0,91379.0,0.01094343]
[1767571124085,4.084e-05,91384.0,91380.0,0.01094331]
[1767571124464,8.4e-07,91384.0,91380.0,0.01094331]
[1767571124624,8.4e-07,91384.0,91379.0,0.01094343]
[1767571124826,0.01094151,91395.0,91388.0,0.01094235]
[1767571125163,0.01094175,91393.0,91386.0,0.05793534]
[1767571125361,0.06559205,91394.0,91386.0,0.04699275]
[1767571125606,0.01094139,91396.0,91394.0,0.000999]
[1767571125804,0.06464985,91396.0,91385.0,0.07985546]
[1767571126128,0.01094175,91393.0,91385.0,0.07985546]
[1767571126252,0.01094139,91396.0,91385.0,0.02192]
[1767571126452,0.01094187,91392.0,91385.0,0.06891275]
[1767571126807,0.01094211,91390.0,91385.0,0.020921]
[1767571127205,0.01094199,91391.0,91385.0,0.020921]
[1767571129629,0.01094235,91388.0,91385.0,0.020921]
[1767571129835,0.01094223,91389.0,91385.0,0.020921]
[1767571130405,0.01094199,91391.0,91385.0,0.020921]
[1767571131051,0.01094211,91390.0,91385.0,0.020921]
[1767571131986,0.01094199,91391.0,91385.0,0.020921]
[1767571132190,0.01094187,91392.0,91385.0,0.020921]
[1767571132753,0.01094223,91389.0,91385.0,0.020921]
[1767571133173,0.05471052,91391.0,91385.0,0.020921]
[1767571133351,0.01094211,91390.0,91385.0,0.020921]
[1767571133986,0.01094223,91389.0,91385.0,0.020921]
[1767571135614,0.01094211,91390.0,91385.0,0.020921]
[1767571135795,0.01094223,91389.0,91385.0,0.020921]
[1767571136372,0.05761549,91387.0,91375.0,0.01094391]
[1767571136578,0.01094259,91386.0,91376.0,0.02192]
[1767571136796,0.01094283,91384.0,91377.0,0.01094367]
[1767571137015,0.01094295,91383.0,91376.0,0.02192]
[1767571137211,0.01094295,91383.0,91376.0,0.03286379]
[1767571137416,0.01094295,91383.0,91376.0,0.02192]
[1767571137791,0.01094283,91384.0,91376.0,0.03286379]